bitfinex-derivatives/quotes_SOLF0:USTF0_20241206
["timestamp","ask_amount","ask_price","bid_price","bid_amount"]
[1733523183945,2.0,237.7,237.59,2.0]
[1733523184745,2.0,237.7,237.63,2.1003]
[1733523184746,2.0999,237.68,237.63,2.1003]
[1733523186546,2.0999,237.69,237.64,2.1003]
[1733523187242,2.0998,237.7,237.64,2.1002]
[1733523187443,2.0998,237.7,237.59,2.0]
[1733523188345,2.0,237.72,237.59,2.0]
[1733523188546,4.0997,237.72,237.66,2.1001]
[1733523188948,2.0997,237.71,237.66,2.1001]
[1733523189946,2.0,237.75,237.59,2.0]
[1733523190251,2.0999,237.69,237.59,2.0]
[1733523190444,2.0,237.75,237.6,2.1006]
[1733523190640,2.1002,237.66,237.59,2.0]
[1733523191051,2.1002,237.66,237.61,2.1006]
[1733523191243,2.1002,237.66,237.59,2.0]
[1733523191642,2.1002,237.66,237.6,2.1006]
[1733523193849,2.0,237.7,237.59,2.0]
[1733523194041,2.1004,237.63,237.57,2.1009]
[1733523194243,2.0,237.65,237.54,4.0323]
[1733523196450,2.0,237.65,237.5,2.0]
[1733523196657,2.0,237.65,237.49,2.0]
[1733523197354,2.101,237.56,237.5,2.1015]
[1733523197955,2.101,237.56,237.5,3.3902]
[1733523198355,2.101,237.56,237.51,2.1014]
[1733523198957,2.1009,237.58,237.52,2.1013]
[1733523199659,2.1009,237.57,237.52,2.1013]
[1733523199956,2.0,237.59,237.53,2.1012]
[1733523200161,2.0,237.59,237.5,3.8755]
[1733523200663,2.0,237.62,237.54,2.1011]
[1733523201059,2.1007,237.6,237.54,2.1011]
[1733523201467,2.0,237.62,237.55,2.1011]
[1733523202162,2.0,237.62,237.5,3.8755]
[1733523202761,2.101,237.56,237.51,2.1014]
[1733523203561,2.101,237.56,237.5,3.8755]
[1733523203562,2.0,237.62,237.5,3.8755]
[1733523204162,2.0,237.62,237.36,43.74]
[1733523204359,2.0,237.62,237.39,2.0]
[1733523206768,2.1016,237.5,237.39,2.0]
[1733523209164,0.4199,237.67,237.39,2.0]
[1733523209165,2.1012,237.55,237.39,2.0]
[1733523209665,2.1012,237.55,237.4,1.2845]
[1733523215071,2.0,237.57,237.4,1.2845]
[1733523215264,2.1012,237.54,237.4,1.2845]
[1733523216072,2.1013,237.53,237.4,1.2845]
[1733523216275,2.0,237.57,237.41,2.0]
[1733523216874,2.0,237.57,237.37,2.6864]
[1733523217075,2.0,237.57,237.38,3.3847]
[1733523217269,2.0,237.57,237.38,1.3847]
[1733523217473,2.1014,237.52,237.41,2.1022]
[1733523217674,2.0,237.51,237.41,2.1022]
[1733523217875,2.0,237.5,237.41,2.1022]
[1733523218077,0.4185,237.56,237.41,2.1022]
[1733523218078,2.0,237.49,237.41,2.1022]
[1733523218677,2.1018,237.48,237.41,2.1022]
[1733523218974,2.1018,237.48,237.42,2.1022]
[1733523220180,2.0,237.49,237.38,1.3847]
[1733523221675,2.1019,237.46,237.41,2.1023]
[1733523225274,2.1019,237.46,237.4,2.1024]
[1733523227276,2.1018,237.47,237.41,2.1023]
[1733523227577,2.0,237.49,237.38,1.3847]
[1733523227982,2.1018,237.48,237.41,2.1023]
[1733523228383,2.1018,237.48,237.38,1.3847]
[1733523229379,2.1018,237.48,237.43,2.1021]
[1733523231281,2.0,237.49,237.43,2.1021]
[1733523231479,2.1018,237.47,237.43,2.1021]
[1733523231683,2.0,237.49,237.41,2.1023]
[1733523232687,2.1019,237.46,237.41,2.1023]
[1733523233691,2.1018,237.48,237.43,2.1021]
[1733523234285,2.1018,237.48,237.44,2.1021]
[1733523240483,2.0,237.52,237.44,2.1021]
[1733523240787,2.1018,237.48,237.44,2.1021]
[1733523243888,2.0,237.52,237.44,2.1021]
[1733523244093,2.1018,237.47,237.44,2.1021]
[1733523245597,2.0,237.52,237.38,1.3847]
[1733523245899,2.1019,237.46,237.42,2.1022]
[1733523246996,2.1019,237.46,237.38,1.3847]
[1733523247200,2.1019,237.46,237.41,2.1023]
[1733523248101,2.102,237.45,237.4,2.1024]
[1733523250203,2.1021,237.44,237.4,2.1024]
[1733523251706,2.102,237.45,237.4,2.1024]
[1733523251905,2.0,237.52,237.39,2.1025]
[1733523252302,2.102,237.45,237.39,2.1025]
[1733523252498,2.0,237.52,237.39,2.1025]
[1733523252899,2.1021,237.44,237.39,2.1025]
[1733523253101,2.0,237.52,237.37,1.3219]
[1733523254207,2.1021,237.44,237.38,2.1025]
[1733523254606,2.0,237.47,237.37,1.3219]
[1733523255698,2.1023,237.42,237.37,3.4246]
[1733523256706,2.0,237.47,237.37,3.4246]
[1733523257103,2.0,237.47,237.31,2.6033]
[1733523257305,2.0,237.47,237.34,2.1029]
[1733523257709,2.0,237.47,237.32,2.1031]
[1733523258103,2.0,237.47,237.31,1.3117]
[1733523258303,2.1027,237.37,237.32,2.1031]
[1733523259409,2.0,237.39,237.3,2.1032]
[1733523259608,2.0,237.39,237.26,2.0]
[1733523259814,2.0,237.39,237.27,8.91674709]
[1733523260007,2.0,237.39,237.28,1.64954673]
[1733523260310,2.0,237.39,237.29,4.44462441]
[1733523260615,2.0,237.39,237.26,2.0]
[1733523260816,2.1029,237.34,237.29,2.1034]
[1733523261113,2.0,237.34,237.24,1.3979]
[1733523261311,2.1037,237.26,237.17,6.90666261]
[1733523261512,2.0,237.27,237.22,4.4439916]
[1733523261717,2.0,237.27,237.17,2.709]
[1733523261718,2.0,237.26,237.17,2.709]
[1733523261915,2.0,237.26,237.19,2.1042]
[1733523262111,2.0,237.26,237.17,2.709]
[1733523262517,2.0,237.26,237.21,16.08906456]
[1733523262919,4.6243,237.46,237.21,13.98496456]
[1733523263217,2.0,237.45,237.21,13.98496456]
[1733523263818,2.1037,237.26,237.21,13.98496456]
[1733523267524,2.1036,237.27,237.21,13.98496456]
[1733523267724,2.0,237.28,237.21,13.98496456]
[1733523268029,2.1037,237.26,237.21,13.98496456]
[1733523268229,2.0,237.28,237.21,13.98496456]
[1733523268825,2.1039,237.24,237.21,13.98496456]
[1733523270827,2.1037,237.26,237.21,13.98496456]
[1733523274433,2.1037,237.26,237.21,16.08906456]
[1733523275329,2.1037,237.26,237.22,2.104]
[1733523275926,4.1035,237.28,237.22,2.104]
[1733523276129,2.10730391,237.27,237.22,2.104]
[1733523276729,4.10730391,237.27,237.22,2.104]
[1733523277632,6.21090391,237.27,237.22,2.104]
[1733523279835,4.10730391,237.27,237.22,2.104]
[1733523280034,2.1037,237.26,237.22,2.104]
[1733523280540,2.10748155,237.25,237.22,2.104]
[1733523281532,2.10748155,237.25,237.21,13.98496456]
[1733523282632,2.10748155,237.25,237.22,2.1039]
[1733523287235,2.10748155,237.25,237.21,16.08906456]
[1733523289536,2.10748155,237.25,237.22,2.104]
[1733523293248,2.10748155,237.25,237.21,13.98496456]
[1733523293949,2.1039,237.23,237.21,13.98496456]
[1733523294148,2.10774808,237.22,237.21,13.98496456]
[1733523302153,2.1035,237.28,237.22,2.104]
[1733523302359,2.0,237.3,237.22,3.4183]
[1733523302560,2.1071263,237.29,237.22,3.4183]
[1733523303055,2.1036,237.27,237.22,3.4183]
[1733523303359,2.1036,237.27,237.22,1.3143]
[1733523305559,2.1071263,237.29,237.24,2.1038]
[1733523305756,2.1071263,237.29,237.22,1.3143]
[1733523306155,2.1071263,237.29,237.25,2.1037]
[1733523306456,2.1071263,237.29,237.22,1.3143]
[1733523306958,2.1071263,237.29,237.24,2.1038]
[1733523307356,2.1071263,237.29,237.25,1.4001]
[1733523308259,2.1071263,237.29,237.25,3.5038]
[1733523308961,2.1028,237.36,237.26,2.0]
[1733523309557,1.2853,237.45,237.26,2.0]
[1733523309861,2.0,237.44,237.26,2.0]
[1733523310062,2.0,237.44,237.27,4.47075111]
[1733523310260,2.0,237.44,237.28,4.47075111]
[1733523310554,2.0,237.44,237.29,1.67286173]
[1733523310762,2.1023,237.41,237.34,2.1029]
[1733523310957,3.2853,237.45,237.34,2.0]
[1733523311256,295.30313297,237.6,237.35,1.2968]
[1733523311457,2.1019,237.47,237.39,2.1024]
[1733523311759,2.1019,237.47,237.39,2.0]
[1733523312761,2.1019,237.47,237.4,2.1024]
[1733523313165,2.1017,237.49,237.41,2.1023]
[1733523313662,2.0,237.51,237.41,2.1023]
[1733523313865,2.1017,237.48,237.41,2.1023]
[1733523314760,2.1017,237.48,237.42,2.1022]
[1733523315162,2.1017,237.48,237.4,1.3259]
[1733523316260,43.8,237.69,237.4,1.3259]
[1733523316458,1.7337,237.67,237.4,1.3259]
[1733523316657,1.7337,237.67,237.49,2.1016]
[1733523317064,2.10384583,237.66,237.49,2.1016]
[1733523317364,2.10384583,237.66,237.51,2.1014]
[1733523317767,2.101,237.56,237.51,2.1014]
[1733523319266,2.0,237.62,237.49,1.3216]
[1733523319464,2.0,237.62,237.5,1.294]
[1733523319861,2.0,237.63,237.5,1.294]
[1733523320266,2.10384583,237.66,237.5,1.294]
[1733523320564,2.0,237.65,237.5,1.294]
[1733523321366,2.10384583,237.66,237.5,1.294]
[1733523321859,2.1003,237.64,237.57,2.1009]
[1733523322062,2.1003,237.64,237.56,2.0]
[1733523322259,2.10384583,237.66,237.56,2.0]
[1733523323767,4.20394583,237.66,237.59,2.1007]
[1733523324368,2.1002,237.65,237.59,2.1007]
[1733523327463,2.10384583,237.66,237.52,2.0]
[1733523327660,2.10384583,237.66,237.5,1.294]
[1733523327860,1.3195,237.65,237.5,3.294]
[1733523328068,2.0,237.64,237.5,3.294]
[1733523329068,2.101,237.57,237.5,5.3955]
[1733523330260,2.0,237.64,237.5,5.3955]
[1733523330471,2.101,237.56,237.5,5.3955]
[1733523331164,2.0,237.64,237.5,1.294]
[1733523331369,2.1012,237.54,237.5,3.294]
[1733523333372,2.0,237.59,237.5,3.294]
[1733523333373,2.1011,237.55,237.5,3.294]
[1733523333970,2.10384583,237.66,237.5,3.294]
[1733523334164,2.0,237.75,237.61,2.1005]
[1733523334369,2.0,237.74,237.6,2.0]
[1733523334565,2.0,237.73,237.6,2.0]
[1733523334875,2.0999,237.68,237.62,2.1004]
[1733523338078,2.0999,237.68,237.6,2.0]
[1733523338079,2.0,237.73,237.6,2.0]
[1733523338272,1.3651,237.82,237.6,2.0]
[1733523338577,2.0,237.81,237.61,2.6378]
[1733523338772,3.4675304,237.82,237.61,2.6378]
[1733523338983,2.0,237.81,237.61,2.6378]
[1733523339178,2.0994,237.74,237.67,2.0999]
[1733523339673,2.0994,237.74,237.66,2.0]
[1733523340680,2.0993,237.75,237.66,2.0]
[1733523340870,3.4675304,237.82,237.66,2.0]
[1733523340871,2.0,237.79,237.66,2.0]
[1733523341274,2.0993,237.75,237.68,2.0999]
[1733523342073,2.0,237.79,237.61,2.6378]
[1733523342278,2.0,237.79,237.62,2.0]
[1733523342481,2.0,237.79,237.63,2.0]
[1733523342881,2.0997,237.71,237.64,2.1002]
[1733523343976,2.0997,237.71,237.64,4.1002]
[1733523344178,2.0,237.79,237.64,4.1002]
[1733523344474,2.0998,237.7,237.64,4.1002]
[1733523347980,2.1001,237.66,237.61,2.6378]
[1733523348177,2.0,237.73,237.61,2.6378]
[1733523348578,2.1002,237.66,237.61,2.6378]
[1733523349183,1.3503,237.72,237.61,2.6378]
[1733523349384,2.1002,237.65,237.61,2.6378]
[1733523350285,1.3503,237.72,237.61,2.6378]
[1733523350481,1.3503,237.72,237.52,1.4068]
[1733523350684,1.3503,237.72,237.53,4.656]
[1733523351591,1.3503,237.72,237.56,2.1009]
[1733523351592,2.1005,237.62,237.56,2.1009]
[1733523351991,2.1005,237.62,237.53,4.656]
[1733523352191,2.1004,237.63,237.57,2.1009]
[1733523354492,2.1005,237.62,237.57,2.1009]
[1733523355095,2.1005,237.62,237.56,2.101]
[1733523356489,2.1004,237.63,237.56,2.101]
[1733523356692,2.0,237.68,237.54,2.1011]
[1733523356892,2.0,237.68,237.53,2.656]
[1733523357288,2.1007,237.6,237.53,2.656]
[1733523357798,2.1008,237.58,237.53,2.656]
[1733523358188,2.0,237.63,237.53,2.656]
[1733523359097,2.1009,237.57,237.53,2.656]
[1733523361796,2.101,237.56,237.53,2.656]
[1733523362399,2.0,237.63,237.53,2.656]
[1733523362598,2.1012,237.54,237.49,2.1016]
[1733523362795,2.0,237.57,237.4,6.79218395]
[1733523362992,2.1018,237.48,237.42,2.1022]
[1733523363200,2.0,237.52,237.43,4.44620275]
[1733523363400,2.0,237.52,237.42,2.1022]
[1733523363599,2.0,237.52,237.43,1.66389036]
[1733523363800,2.0,237.52,237.41,2.1023]
[1733523364100,2.0,237.52,237.42,4.44701667]
[1733523364400,2.0,237.52,237.41,2.0]
[1733523364401,2.0,237.52,237.45,2.1019]
[1733523364789,2.1014,237.51,237.45,2.1019]
[1733523365191,1.755,237.62,237.41,2.0]
[1733523365390,1.755,237.62,237.42,4.44505036]
[1733523365594,2.0,237.61,237.43,4.44489068]
[1733523365795,2.0,237.61,237.44,4.28741247]
[1733523365990,2.101,237.56,237.49,2.1015]
[1733523366195,2.101,237.56,237.49,4.1015]
[1733523366502,2.101,237.56,237.5,2.1015]
[1733523368302,2.1009,237.58,237.51,2.1014]
[1733523369102,2.1007,237.6,237.52,2.1013]
[1733523369296,2.1007,237.6,237.49,2.0]
[1733523369996,2.0,237.61,237.53,2.1012]
[1733523369997,2.1008,237.59,237.53,2.1012]
[1733523370303,2.1008,237.59,237.49,2.0]
[1733523371197,2.1008,237.59,237.52,2.1013]
[1733523371904,0.4239,237.71,237.49,2.0]
[1733523372096,1.373,237.7,237.49,2.0]
[1733523372296,2.1001,237.66,237.59,2.1007]
[1733523372504,1.373,237.7,237.57,2.0]
[1733523372705,3.373,237.7,237.58,4.6969]
[1733523373604,3.373,237.7,237.59,2.1007]
[1733523374198,2.1001,237.67,237.59,2.1007]
[1733523374801,2.1001,237.67,237.6,2.1006]
[1733523375594,2.1024304,237.82,237.58,4.6969]
[1733523375800,1.3499,237.81,237.59,1.3343]
[1733523376001,2.0997,237.71,237.63,2.1004]
[1733523376402,2.0,237.77,237.6,2.0]
[1733523376807,2.0998,237.7,237.63,2.1003]
[1733523377307,2.0998,237.7,237.63,4.1003]
[1733523377508,2.0996,237.72,237.64,2.1002]
[1733523378307,2.0996,237.72,237.63,2.0]
[1733523378608,2.0996,237.72,237.65,2.1002]
[1733523379806,2.0,237.77,237.64,2.1003]
[1733523379807,2.0995,237.73,237.64,2.1003]
[1733523380007,2.0,237.77,237.64,2.1003]
[1733523380506,2.0998,237.7,237.64,2.1003]
[1733523381105,2.0998,237.7,237.65,2.1002]
[1733523381500,2.1001,237.67,237.62,2.0]
[1733523381703,2.1001,237.67,237.62,2.1005]
[1733523382102,2.0994,237.74,237.69,2.0998]
[1733523382307,2.10260723,237.8,237.65,2.0]
[1733523382502,2.0,237.79,237.66,2.0]
[1733523382703,2.0993,237.75,237.7,2.0997]
[1733523383713,2.0,237.78,237.67,1.344]
[1733523383912,2.0991,237.77,237.73,2.0995]
[1733523384207,2.0,237.79,237.67,1.344]
[1733523384412,2.0,237.79,237.67,2.6681]
[1733523384715,4.099,237.79,237.67,2.6681]
[1733523384913,2.099,237.79,237.67,2.6681]
[1733523385616,4.20150723,237.8,237.74,2.0994]
[1733523385803,4.20150723,237.8,237.71,2.0]
[1733523386003,4.20150723,237.8,237.74,2.0994]
[1733523386203,2.0989,237.8,237.74,2.0994]
[1733523386612,2.099,237.79,237.74,2.0994]
[1733523386809,2.0,237.83,237.71,2.0]
[1733523387318,1.2763,237.82,237.71,2.0]
[1733523387711,2.0992,237.77,237.71,4.0997]
[1733523388915,1.2763,237.82,237.71,4.0997]
[1733523389110,1.2763,237.82,237.67,2.6681]
[1733523389818,2.0996,237.73,237.67,4.768]
[1733523390822,2.0,237.77,237.67,4.768]
[1733523391019,2.0996,237.72,237.67,4.768]
[1733523391410,2.0,237.77,237.67,4.768]
[1733523391611,2.0995,237.73,237.67,4.768]
[1733523391921,2.0995,237.73,237.67,2.6681]
[1733523394921,2.0995,237.73,237.67,4.7681]
[1733523395419,2.0,237.77,237.67,2.6681]
[1733523395715,2.0994,237.74,237.68,2.0999]
[1733523398722,2.0,237.77,237.67,1.344]
[1733523398921,2.0,237.77,237.59,1.3286]
[1733523399126,2.0,237.77,237.6,3.3626]
[1733523400118,2.1,237.68,237.62,2.1004]
[1733523400318,2.0,237.77,237.62,2.1004]
[1733523400514,2.0,237.77,237.6,3.3626]
[1733523401017,2.0,237.77,237.61,2.1005]
[1733523402418,2.0,237.77,237.6,1.3626]
[1733523402820,2.0996,237.72,237.6,1.3626]
[1733523403020,3.3248,237.71,237.6,1.3626]
[1733523404012,2.1,237.68,237.6,1.3626]
[1733523404214,3.3248,237.71,237.6,1.3626]
[1733523405623,2.1004,237.64,237.6,1.3626]
[1733523405923,3.3248,237.71,237.6,1.3626]
[1733523407525,2.1005,237.62,237.6,1.3626]
[1733523408417,3.3248,237.71,237.6,1.3626]
[1733523408623,2.1006,237.61,237.57,1.2899]
[1733523409622,2.0,237.66,237.57,1.2899]
[1733523409822,2.1005,237.62,237.57,3.3907]
[1733523417129,2.1005,237.62,237.57,1.2899]
[1733523418021,2.0,237.66,237.57,1.2899]
[1733523418228,2.1004,237.64,237.57,1.2899]
[1733523419026,2.1004,237.64,237.59,2.1007]
[1733523420332,2.1004,237.63,237.59,2.1007]
[1733523421731,3.3248,237.71,237.57,1.2899]
[1733523423235,1.3248,237.71,237.57,1.2899]
[1733523423628,2.0999,237.69,237.64,2.1003]
[1733523425736,2.1,237.68,237.64,2.1003]
[1733523426834,2.1,237.68,237.62,1.3148]
[1733523426835,2.1,237.67,237.62,3.3148]
[1733523427740,2.1,237.67,237.62,5.4153]
[1733523432938,2.1,237.67,237.62,3.3148]
[1733523433137,2.1,237.68,237.63,2.1004]
[1733523437335,2.0,237.72,237.63,2.1004]
[1733523437538,2.0,237.72,237.57,3.2899]
[1733523437733,1.2898,237.71,237.57,3.2899]
[1733523438237,2.1004,237.63,237.59,2.1007]
[1733523439036,2.1004,237.63,237.57,3.2899]
[1733523439237,2.1004,237.63,237.58,2.1008]
[1733523439738,2.0,237.67,237.57,3.2899]
[1733523439739,2.1005,237.62,237.57,2.1009]
[1733523440340,2.1005,237.62,237.58,2.1008]
[1733523442138,2.0,237.67,237.55,2.0]
[1733523442336,2.0,237.67,237.52,2.0]
[1733523442739,2.0,237.67,237.56,2.101]
[1733523443139,2.0,237.67,237.52,2.0]
[1733523443340,2.1005,237.63,237.57,2.1009]
[1733523443541,2.0,237.67,237.57,2.1009]
[1733523444139,2.1005,237.62,237.57,2.1009]
[1733523444642,2.1005,237.62,237.52,2.0]
[1733523444943,2.1005,237.62,237.58,2.1008]
[1733523445946,2.1005,237.62,237.52,2.0]
[1733523446146,2.1005,237.62,237.53,1.66967954]
[1733523446441,2.1005,237.62,237.52,2.0]
[1733523446648,2.1005,237.62,237.53,1.66984908]
[1733523446841,2.1005,237.62,237.52,2.0]
[1733523447043,2.1005,237.62,237.53,1.66978581]
[1733523447243,2.1005,237.62,237.52,2.0]
[1733523447643,2.1005,237.62,237.56,2.101]
[1733523449649,2.1005,237.62,237.52,2.0]
[1733523449942,2.1005,237.62,237.57,2.1009]
[1733523450342,4.1986,237.76,237.51,2.6823]
[1733523450343,276.65683297,237.86,237.58,2.0]
[1733523450536,2.6663,238.05,237.6,4.19045004]
[1733523450741,2.0,238.04,237.63,4.19045004]
[1733523450939,2.0,238.04,237.88,2.0981]
[1733523451145,2.6663,238.05,237.88,2.0981]
[1733523451451,2.0974,237.98,237.85,2.0984]
[1733523451743,2.0,237.97,237.77,2.0]
[1733523451944,2.0977,237.94,237.81,2.0988]
[1733523452140,6.064,237.93,237.82,4.44295435]
[1733523452341,2.0,237.92,237.72,2.0]
[1733523452541,4.064,237.93,237.73,9.74594237]
[1733523452744,2.0,237.92,237.74,12.54987662]
[1733523452946,2.0,237.92,237.75,12.54987662]
[1733523453242,2.0,237.92,237.78,2.15494512]
[1733523453439,2.0,237.92,237.79,8.65322749]
[1733523453643,2.0979,237.91,237.8,8.65322749]
[1733523453838,2.0,237.92,237.81,8.65322749]
[1733523454151,2.0982,237.89,237.82,4.55614432]
[1733523454350,2.0982,237.89,237.83,1.75221007]
[1733523454647,2.0982,237.89,237.84,1.75221007]
[1733523454945,2.0982,237.89,237.7,4.9112574]
[1733523455149,2.0982,237.89,237.71,12.08190649]
[1733523455346,2.0982,237.89,237.72,12.08190649]
[1733523455547,2.0982,237.89,237.73,12.08190649]
[1733523455748,2.0982,237.88,237.77,2.0991]
[1733523456050,2.0,237.87,237.78,5.09351346]
[1733523456251,2.0,237.87,237.79,1.95887249]
[1733523456446,2.0,237.87,237.8,1.95887249]
[1733523456647,2.0,237.87,237.81,1.95887249]
[1733523456954,2.0,237.87,237.78,2.099]
[1733523457245,2.0,237.87,237.79,1.95745608]
[1733523457450,4.0983,237.87,237.8,1.95745608]
[1733523457747,2.0,237.87,237.68,2.0]
[1733523457949,2.0982,237.86,237.69,12.06845658]
[1733523458150,2.0982,237.86,237.7,12.06845658]
[1733523458344,2.6644,237.93,237.71,9.00316329]
[1733523458651,3.3435,237.92,237.72,12.0672774]
[1733523458952,3.3435,237.92,237.73,9.00316329]
[1733523459141,3.3435,237.92,237.74,9.00316329]
[1733523459343,2.0978,237.9,237.81,2.0986]
[1733523459541,2.0978,237.9,237.82,1.95687139]
[1733523459749,2.0978,237.9,237.83,1.95687139]
[1733523459954,2.0978,237.9,237.84,1.95687139]
[1733523460142,2.0978,237.9,237.81,2.0986]
[1733523460341,2.0978,237.9,237.82,1.9543807]
[1733523460550,2.0978,237.9,237.83,1.9543807]
[1733523460743,2.06,237.89,237.81,2.0986]
[1733523461050,2.06,237.89,237.82,1.95419414]
[1733523461051,4.1579,237.89,237.82,1.95419414]
[1733523461347,4.1579,237.89,237.81,2.0986]
[1733523461547,2.0978,237.91,237.82,4.05197363]
[1733523461749,2.06,237.9,237.83,1.95347363]
[1733523461950,2.06,237.9,237.74,2.15494512]
[1733523462247,2.0978,237.9,237.83,2.0984]
[1733523462446,2.06,237.89,237.84,1.95343408]
[1733523462652,2.06,237.89,237.83,2.0984]
[1733523462847,2.0978,237.9,237.75,2.15494512]
[1733523462848,3.3812,237.92,237.84,4.05103455]
[1733523463046,3.3812,237.92,237.85,1.95273455]
[1733523463047,2.04,237.91,237.85,1.95273455]
[1733523463242,2.04,237.91,237.84,2.0983]
[1733523463457,2.04,237.9,237.86,1.95290575]
[1733523463655,2.04,237.9,237.87,1.95290575]
[1733523463949,1.2835,237.92,237.59,217.33633538]
[1733523463950,2.6644,237.93,237.88,1.95290575]
[1733523464150,2.04,237.92,237.89,1.95290575]
[1733523464355,2.6644,237.93,237.9,1.95290575]
[1733523464548,2.6644,237.93,237.91,1.95290575]
[1733523464743,2.04,237.93,237.92,1.95290575]
[1733523465952,4.1375,237.93,237.87,2.098]
[1733523466148,2.04,237.93,237.88,7.02294366]
[1733523466353,2.04,237.93,237.89,3.12106231]
[1733523466550,2.0975,237.93,237.87,2.098]
[1733523466759,2.04,237.92,237.88,6.98341304]
[1733523466956,2.04,237.92,237.89,3.10349666]
[1733523467160,2.04,237.92,237.9,3.10349666]
[1733523467450,2.04,237.92,237.81,2.14149411]
[1733523467751,2.7651,238.05,237.82,6.98113315]
[1733523467752,2.0971,237.99,237.82,6.98113315]
[1733523467957,2.7651,238.05,237.83,6.98113315]
[1733523468151,2.7651,238.05,237.84,6.98113315]
[1733523468152,2.04,238.04,237.84,6.98113315]
[1733523468456,2.0976,237.93,237.87,2.098]
[1733523468657,2.04,237.92,237.88,3.10248131]
[1733523468956,2.04,237.92,237.83,4.23979411]
[1733523468957,2.098,237.89,237.83,4.23979411]
[1733523469250,2.098,237.89,237.84,3.87781165]
[1733523469458,2.098,237.89,237.81,2.14149411]
[1733523469755,2.098,237.89,237.82,3.84461699]
[1733523469954,2.098,237.89,237.83,3.84461699]
[1733523470155,2.098,237.89,237.84,3.84461699]
[1733523470456,2.098,237.89,237.81,2.14149411]
[1733523470654,2.098,237.89,237.82,5.94237908]
[1733523470854,2.098,237.89,237.83,3.84397908]
[1733523471057,2.098,237.89,237.82,2.0984]
[1733523471252,2.098,237.88,237.82,2.0984]
[1733523471460,2.04,237.87,237.8,2.0987]
[1733523471959,2.04,237.87,237.76,2.13956999]
[1733523472158,2.04,237.87,237.77,3.76163327]
[1733523472359,2.04,237.87,237.78,3.76163327]
[1733523472661,2.04,237.87,237.79,3.76163327]
[1733523472961,2.04,237.87,237.8,3.76163327]
[1733523473259,2.04,237.87,237.81,3.76163327]
[1733523473559,2.04,237.87,237.77,2.13956999]
[1733523473755,2.04,237.87,237.82,2.0985]
[1733523474060,2.098,237.88,237.82,2.0985]
[1733523474248,2.04,237.87,237.82,2.0985]
[1733523475853,2.04,237.87,237.78,2.13956999]
[1733523476055,2.04,237.87,237.79,3.76071089]
[1733523476261,2.04,237.87,237.8,3.76071089]
[1733523476459,2.04,237.87,237.78,2.0988]
[1733523476657,2.04,237.87,237.79,3.7609034]
[1733523476861,2.04,237.87,237.8,3.7609034]
[1733523477160,2.04,237.87,237.78,2.0988]
[1733523477362,2.04,237.87,237.79,3.76102494]
[1733523477555,2.04,237.87,237.8,3.76102494]
[1733523477756,2.0984,237.84,237.78,2.0988]
[1733523477955,2.0984,237.84,237.79,5.64099161]
[1733523478151,2.0984,237.84,237.8,5.64099161]
[1733523478460,2.0984,237.84,237.81,5.64099161]
[1733523478661,2.0984,237.84,237.82,1.87997487]
[1733523478958,2.0984,237.84,237.83,4.88847131]